[Event "*** Titled Tuesday Blitz"]
[Site "Chess.com"]
[Date "2019.07.02"]
[Round "10"]
[White "IMRosen"]
[Black "StephenDedalus83"]
[Result "0-1"]
[WhiteElo "2608"]
[BlackElo "2800"]
[TimeControl "180+2"]
[EndTime "15:14:13 PDT"]
[Termination "StephenDedalus83 won by resignation"]

1. d4 {[%clk 0:03:01.9]} 1... Nf6 {[%clk 0:03:00.3]} 2. Bf4 {[%clk 0:03:01.8]}
2... d6 {[%clk 0:02:57.7]} 3. Nc3 {[%clk 0:03:02.6]} 3... Nbd7 {[%clk
0:02:58.5]} 4. Nf3 {[%clk 0:03:02.6]} 4... Nh5 {[%clk 0:02:54.7]} 5. Bg5 {[%clk
0:03:00.8]} 5... h6 {[%clk 0:02:55.3]} 6. Bd2 {[%clk 0:02:56.4]} 6... e5 {[%clk
0:02:52.5]} 7. e4 {[%clk 0:02:55.1]} 7... Nhf6 {[%clk 0:02:46.7]} 8. h3 {[%clk
0:02:47.6]} 8... Be7 {[%clk 0:02:45]} 9. a4 {[%clk 0:02:45]} 9... O-O {[%clk
0:02:43.9]} 10. Bc4 {[%clk 0:02:43.9]} 10... exd4 {[%clk 0:02:30.8]} 11. Nxd4
{[%clk 0:02:44.6]} 11... Nc5 {[%clk 0:02:32.2]} 12. Qf3 {[%clk 0:02:36.1]} 12...
Ne6 {[%clk 0:02:22.6]} 13. Nf5 {[%clk 0:02:28.7]} 13... Ng5 {[%clk 0:02:23.5]}
14. Bxg5 {[%clk 0:02:22.4]} 14... hxg5 {[%clk 0:02:24.2]} 15. O-O-O {[%clk
0:02:16.4]} 15... g6 {[%clk 0:02:13.3]} 16. h4 {[%clk 0:01:45.3]} 16... gxf5
{[%clk 0:01:57.8]} 17. hxg5 {[%clk 0:01:40.7]} 17... Ng4 {[%clk 0:01:58.6]} 18.
g6 {[%clk 0:01:11.3]} 18... Kg7 {[%clk 0:01:58.6]} 19. Rh7+ {[%clk 0:00:53.7]}
19... Kxg6 {[%clk 0:01:59]} 20. Rdh1 {[%clk 0:00:53]} 20... Bg5+ {[%clk
0:01:59.2]} 21. Kb1 {[%clk 0:00:53]} 21... Nh6 {[%clk 0:01:51.8]} 22. Rxf7
{[%clk 0:00:14.8]} 22... Rxf7 {[%clk 0:01:48.1]} 23. Qh5+ {[%clk 0:00:15.7]}
23... Kg7 {[%clk 0:01:47.3]} 24. Bxf7 {[%clk 0:00:12.6]} 24... Nxf7 {[%clk
0:01:47.7]} 25. Qh7+ {[%clk 0:00:06.2]} 25... Kf8 {[%clk 0:01:48.3]} 26. f4
{[%clk 0:00:06.9]} 26... Bxf4 {[%clk 0:01:45.6]} 27. Nd5 {[%clk 0:00:07.6]}
27... Be5 {[%clk 0:01:46.2]} 28. Qg6 {[%clk 0:00:03.6]} 28... Qg5 {[%clk
0:01:36]} 29. Qh7 {[%clk 0:00:03.1]} 29... Qg7 {[%clk 0:01:22.6]} 30. Qh5 {[%clk
0:00:02.9]} 30... fxe4 {[%clk 0:01:21.5]} 31. Rf1 {[%clk 0:00:03.2]} 31... Bg4
{[%clk 0:01:20.5]} 32. Qh1 {[%clk 0:00:02.5]} 32... c6 {[%clk 0:01:16.4]} 33.
Ne3 {[%clk 0:00:02.6]} 33... Be6 {[%clk 0:01:16]} 34. g4 {[%clk 0:00:04.1]}
34... d5 {[%clk 0:01:14.3]} 35. Qh5 {[%clk 0:00:03.6]} 35... Bxb2 {[%clk
0:01:10]} 36. Nd1 {[%clk 0:00:03.1]} 36... Be5 {[%clk 0:01:09]} 37. g5 {[%clk
0:00:04.4]} 37... Ke7 {[%clk 0:01:07.9]} 38. g6 {[%clk 0:00:05.3]} 38... Nd6
{[%clk 0:01:08.7]} 39. Qh4+ {[%clk 0:00:04.8]} 39... Kd7 {[%clk 0:01:07.6]} 40.
Qg5 {[%clk 0:00:03.9]} 40... Rg8 {[%clk 0:01:03.9]} 41. Rg1 {[%clk 0:00:05]}
41... Qf6 {[%clk 0:01:03.8]} 42. Qe3 {[%clk 0:00:04.1]} 42... Bd4 {[%clk
0:01:03]} 43. Qb3 {[%clk 0:00:02.4]} 43... Kc7 {[%clk 0:01:02.9]} 44. Rf1 {[%clk
0:00:02.2]} 44... Qxf1 {[%clk 0:01:02.5]} 45. Ka2 {[%clk 0:00:03]} 45... Qxd1
{[%clk 0:01:02.5]} 46. c3 {[%clk 0:00:04.9]} 46... Qxb3+ {[%clk 0:01:02.5]} 47.
Kxb3 {[%clk 0:00:06.2]} 47... Be5 {[%clk 0:01:03.5]} 48. a5 {[%clk 0:00:07.6]}
48... Rxg6 {[%clk 0:01:04.1]} 49. a6 {[%clk 0:00:09.5]} 0-1

[Event "*** Titled Tuesday Blitz"]
[Site "Chess.com"]
[Date "2019.07.02"]
[Round "10"]
[White "LucaBrasi1968"]
[Black "BlueWizzard"]
[Result "0-1"]
[WhiteElo "2476"]
[BlackElo "2707"]
[TimeControl "180+2"]
[EndTime "15:14:15 PDT"]
[Termination "BlueWizzard won by resignation"]

1. d4 {[%clk 0:02:50.7]} 1... Nf6 {[%clk 0:02:59.9]} 2. Nf3 {[%clk 0:02:50.9]}
2... d6 {[%clk 0:03:01.5]} 3. Bg5 {[%clk 0:02:51.8]} 3... Ne4 {[%clk 0:03:02.1]}
4. Bf4 {[%clk 0:02:52.5]} 4... g6 {[%clk 0:03:03.5]} 5. e3 {[%clk 0:02:53.5]}
5... Bg7 {[%clk 0:03:04.2]} 6. Bd3 {[%clk 0:02:54.6]} 6... d5 {[%clk 0:03:04.4]}
7. O-O {[%clk 0:02:50.4]} 7... O-O {[%clk 0:03:04.8]} 8. c4 {[%clk 0:02:50.7]}
8... Nf6 {[%clk 0:03:05.2]} 9. cxd5 {[%clk 0:02:49.1]} 9... Nxd5 {[%clk
0:03:05.9]} 10. Bg3 {[%clk 0:02:50.4]} 10... c5 {[%clk 0:03:07]} 11. Bc4 {[%clk
0:02:10.8]} 11... Nb6 {[%clk 0:03:00.4]} 12. Bb3 {[%clk 0:02:08.6]} 12... Bg4
{[%clk 0:02:46.5]} 13. h3 {[%clk 0:02:07.2]} 13... Bxf3 {[%clk 0:02:45.9]} 14.
Qxf3 {[%clk 0:02:08]} 14... cxd4 {[%clk 0:02:47.3]} 15. Qxb7 {[%clk 0:02:08.7]}
15... N8d7 {[%clk 0:02:39.6]} 16. exd4 {[%clk 0:02:01.8]} 16... Bxd4 {[%clk
0:02:39.4]} 17. Nc3 {[%clk 0:02:00.1]} 17... Nc5 {[%clk 0:02:38.6]} 18. Qf3
{[%clk 0:01:49.8]} 18... Nxb3 {[%clk 0:02:38.9]} 19. axb3 {[%clk 0:01:50.5]}
19... Qc8 {[%clk 0:02:31.2]} 20. Rfd1 {[%clk 0:01:46.7]} 20... Bg7 {[%clk
0:02:28.2]} 21. Rac1 {[%clk 0:01:35.5]} 21... Qe6 {[%clk 0:02:27.3]} 22. Ne4
{[%clk 0:01:04.9]} 22... Rac8 {[%clk 0:02:19]} 23. Nc5 {[%clk 0:01:02.9]} 23...
Qf5 {[%clk 0:02:17.5]} 24. Qxf5 {[%clk 0:00:57.2]} 24... gxf5 {[%clk 0:02:19.4]}
25. Nd3 {[%clk 0:00:44]} 25... Rfd8 {[%clk 0:02:11.1]} 26. Rxc8 {[%clk
0:00:37.8]} 26... Rxc8 {[%clk 0:02:03.4]} 27. Rd2 {[%clk 0:00:32.4]} 27... Nd5
{[%clk 0:01:58.5]} 28. Be5 {[%clk 0:00:31.2]} 28... Bh6 {[%clk 0:01:57.3]} 29.
Re2 {[%clk 0:00:22.9]} 29... a6 {[%clk 0:01:50.7]} 30. Bd4 {[%clk 0:00:22.8]}
30... Nf4 {[%clk 0:01:45.5]} 31. Nxf4 {[%clk 0:00:22.8]} 31... Bxf4 {[%clk
0:01:45.9]} 32. g3 {[%clk 0:00:24]} 32... Rc1+ {[%clk 0:01:43.8]} 33. Kg2 {[%clk
0:00:24]} 33... Bd6 {[%clk 0:01:45.3]} 34. Bc3 {[%clk 0:00:21.5]} 34... Rd1
{[%clk 0:01:41.2]} 35. b4 {[%clk 0:00:20.3]} 35... f6 {[%clk 0:01:40.7]} 36. Kf3
{[%clk 0:00:17.3]} 36... Kf7 {[%clk 0:01:41.2]} 37. h4 {[%clk 0:00:18.7]} 37...
e5 {[%clk 0:01:40.6]} 38. Kg2 {[%clk 0:00:18.8]} 38... Ke6 {[%clk 0:01:39]} 39.
Kf3 {[%clk 0:00:19.6]} 39... Kd5 {[%clk 0:01:35.8]} 40. Kg2 {[%clk 0:00:20.8]}
40... Kc4 {[%clk 0:01:30.7]} 41. g4 {[%clk 0:00:22]} 41... Bxb4 {[%clk
0:01:17.9]} 42. Bxb4 {[%clk 0:00:21]} 42... Kxb4 {[%clk 0:01:19.8]} 43. gxf5
{[%clk 0:00:22.2]} 43... Rd4 {[%clk 0:01:18.7]} 44. Kg3 {[%clk 0:00:22.6]} 44...
Kb3 {[%clk 0:01:17.9]} 45. h5 {[%clk 0:00:20.5]} 45... a5 {[%clk 0:01:18]} 46.
h6 {[%clk 0:00:21.6]} 46... a4 {[%clk 0:01:18.7]} 47. f3 {[%clk 0:00:21.5]}
47... Rc4 {[%clk 0:01:16.6]} 48. Rh2 {[%clk 0:00:16]} 48... Rc2 {[%clk
0:01:16.2]} 49. Rh4 {[%clk 0:00:17.2]} 49... Rxb2 {[%clk 0:01:17]} 50. Rg4
{[%clk 0:00:18.6]} 50... a3 {[%clk 0:01:17.7]} 51. Rg7 {[%clk 0:00:17.6]} 51...
a2 {[%clk 0:01:18.8]} 52. Ra7 {[%clk 0:00:19.5]} 52... Rb1 {[%clk 0:01:19.4]}
53. Rb7+ {[%clk 0:00:20.2]} 53... Kc3 {[%clk 0:01:19.1]} 0-1

[Event "*** Titled Tuesday Blitz"]
[Site "Chess.com"]
[Date "2019.07.02"]
[Round "10"]
[White "Siniauski"]
[Black "sandager"]
[Result "1-0"]
[WhiteElo "2400"]
[BlackElo "2113"]
[TimeControl "180+2"]
[EndTime "15:14:18 PDT"]
[Termination "Siniauski won by resignation"]

1. e4 {[%clk 0:02:59]} 1... e5 {[%clk 0:03:00.7]} 2. Nf3 {[%clk 0:02:58.7]} 2...
Nc6 {[%clk 0:03:01.3]} 3. Bb5 {[%clk 0:02:58.8]} 3... a6 {[%clk 0:03:02.5]} 4.
Ba4 {[%clk 0:02:59.6]} 4... Nf6 {[%clk 0:03:03.7]} 5. O-O {[%clk 0:02:59.5]}
5... Be7 {[%clk 0:03:04.7]} 6. Re1 {[%clk 0:02:59.6]} 6... b5 {[%clk 0:03:05.9]}
7. Bb3 {[%clk 0:02:59.8]} 7... O-O {[%clk 0:03:07]} 8. h3 {[%clk 0:02:59.3]}
8... d6 {[%clk 0:03:07.2]} 9. c3 {[%clk 0:02:57.2]} 9... Na5 {[%clk 0:03:07.5]}
10. Bc2 {[%clk 0:02:57.1]} 10... c5 {[%clk 0:03:08.3]} 11. d4 {[%clk 0:02:56.7]}
11... Qc7 {[%clk 0:03:09]} 12. Nbd2 {[%clk 0:02:52.4]} 12... Re8 {[%clk
0:03:07.4]} 13. b3 {[%clk 0:02:51.7]} 13... Bf8 {[%clk 0:03:07.6]} 14. Bb2
{[%clk 0:02:51.3]} 14... h6 {[%clk 0:03:08.1]} 15. Nf1 {[%clk 0:02:45.3]} 15...
Bb7 {[%clk 0:02:58.4]} 16. Ng3 {[%clk 0:02:45]} 16... g6 {[%clk 0:02:58]} 17.
Rc1 {[%clk 0:02:44.7]} 17... Nc6 {[%clk 0:02:52.5]} 18. Bb1 {[%clk 0:02:41.1]}
18... Rad8 {[%clk 0:02:48]} 19. Qd2 {[%clk 0:02:39.8]} 19... Qb8 {[%clk
0:02:38.6]} 20. Nh2 {[%clk 0:02:32.7]} 20... cxd4 {[%clk 0:02:33.5]} 21. cxd4
{[%clk 0:02:32.5]} 21... exd4 {[%clk 0:02:23.3]} 22. Bxd4 {[%clk 0:02:31.1]}
22... Nxd4 {[%clk 0:02:23.9]} 23. Qxd4 {[%clk 0:02:33]} 23... Bg7 {[%clk
0:02:24.5]} 24. Qb6 {[%clk 0:02:28.1]} 24... Nd7 {[%clk 0:02:09.2]} 25. Qe3
{[%clk 0:02:24.9]} 25... d5 {[%clk 0:02:00.4]} 26. Ng4 {[%clk 0:02:16.8]} 26...
Kh7 {[%clk 0:01:50.6]} 27. Qf3 {[%clk 0:02:05]} 27... dxe4 {[%clk 0:01:40]} 28.
Qxf7 {[%clk 0:02:03.3]} 28... Rf8 {[%clk 0:01:32]} 29. Qe7 {[%clk 0:01:48.1]}
29... Nf6 {[%clk 0:01:12.1]} 30. Nxf6+ {[%clk 0:01:40.1]} 30... Rxf6 {[%clk
0:01:09]} 31. Bxe4 {[%clk 0:01:38.6]} 31... Bxe4 {[%clk 0:00:57.6]} 32. Nxe4
{[%clk 0:01:38.8]} 32... Rf4 {[%clk 0:00:53]} 33. Rc7 {[%clk 0:01:31.5]} 33...
Rg8 {[%clk 0:00:51.5]} 34. g3 {[%clk 0:01:06.8]} 34... Rff8 {[%clk 0:00:43.3]}
35. Rec1 {[%clk 0:01:03.5]} 35... Kh8 {[%clk 0:00:42.4]} 36. Rb7 {[%clk
0:00:56.3]} 36... Qd8 {[%clk 0:00:30.2]} 37. Qxd8 {[%clk 0:00:45.8]} 37... Rxd8
{[%clk 0:00:29.5]} 38. Rcc7 {[%clk 0:00:47.5]} 38... Rdf8 {[%clk 0:00:21.4]} 39.
Ra7 {[%clk 0:00:41]} 39... h5 {[%clk 0:00:15.5]} 40. Ng5 {[%clk 0:00:38]} 40...
Rd8 {[%clk 0:00:07.8]} 41. Ne6 {[%clk 0:00:36.6]} 41... Rd1+ {[%clk 0:00:06.8]}
42. Kg2 {[%clk 0:00:36.2]} 1-0

[Event "*** Titled Tuesday Blitz"]
[Site "Chess.com"]
[Date "2019.07.02"]
[Round "10"]
[White "SalgadoChess91"]
[Black "2nd_life"]
[Result "1-0"]
[WhiteElo "2837"]
[BlackElo "2537"]
[TimeControl "180+2"]
[EndTime "15:14:21 PDT"]
[Termination "SalgadoChess91 won on time"]

1. d4 {[%clk 0:03:01.2]} 1... Nf6 {[%clk 0:02:55.3]} 2. c4 {[%clk 0:03:01]} 2...
e6 {[%clk 0:02:51.8]} 3. Nf3 {[%clk 0:03:01.5]} 3... c5 {[%clk 0:02:52.1]} 4. d5
{[%clk 0:03:02.2]} 4... exd5 {[%clk 0:02:53.1]} 5. cxd5 {[%clk 0:03:03.6]} 5...
d6 {[%clk 0:02:54.3]} 6. Nc3 {[%clk 0:03:05.1]} 6... a6 {[%clk 0:02:55]} 7. a4
{[%clk 0:03:04.6]} 7... g6 {[%clk 0:02:55.8]} 8. e4 {[%clk 0:03:05.4]} 8... Bg7
{[%clk 0:02:53.6]} 9. Be2 {[%clk 0:03:06.7]} 9... Bg4 {[%clk 0:02:51]} 10. O-O
{[%clk 0:03:07.2]} 10... O-O {[%clk 0:02:47.5]} 11. Bf4 {[%clk 0:03:07.5]} 11...
Bxf3 {[%clk 0:02:36.4]} 12. Bxf3 {[%clk 0:03:08]} 12... Ne8 {[%clk 0:02:28.4]}
13. Be2 {[%clk 0:02:57.7]} 13... Nd7 {[%clk 0:02:26.3]} 14. Bg3 {[%clk
0:02:58.2]} 14... Rb8 {[%clk 0:01:53.6]} 15. Kh1 {[%clk 0:02:58.3]} 15... b5
{[%clk 0:01:48.9]} 16. axb5 {[%clk 0:02:57.3]} 16... axb5 {[%clk 0:01:49.7]} 17.
Nxb5 {[%clk 0:02:55.7]} 17... Bxb2 {[%clk 0:01:44.5]} 18. Nxd6 {[%clk
0:02:40.2]} 18... Bxa1 {[%clk 0:01:18.6]} 19. Qxa1 {[%clk 0:02:34.1]} 19... Ra8
{[%clk 0:01:09.5]} 20. Qc3 {[%clk 0:02:29.9]} 20... Nxd6 {[%clk 0:01:07.4]} 21.
Bxd6 {[%clk 0:02:28.7]} 21... Re8 {[%clk 0:01:08.4]} 22. e5 {[%clk 0:02:18.2]}
22... Qa5 {[%clk 0:00:39.1]} 23. Qxa5 {[%clk 0:02:14.5]} 23... Rxa5 {[%clk
0:00:39.7]} 24. f4 {[%clk 0:02:15.7]} 24... c4 {[%clk 0:00:28.5]} 25. Bxc4
{[%clk 0:01:55.8]} 25... Nb6 {[%clk 0:00:28.7]} 26. Bc7 {[%clk 0:01:42.2]} 26...
Nxc4 {[%clk 0:00:25.9]} 27. Bxa5 {[%clk 0:01:41.7]} 27... Nxa5 {[%clk
0:00:27.1]} 28. d6 {[%clk 0:01:42.2]} 28... Rd8 {[%clk 0:00:21.6]} 29. Rc1
{[%clk 0:01:36.2]} 29... Nb3 {[%clk 0:00:14.5]} 30. Rc7 {[%clk 0:01:31]} 30...
Nd4 {[%clk 0:00:15.2]} 31. g3 {[%clk 0:01:31.8]} 31... h5 {[%clk 0:00:14.8]} 32.
Kg2 {[%clk 0:01:32.5]} 32... Ne6 {[%clk 0:00:15.8]} 33. Rb7 {[%clk 0:01:28.2]}
33... Ra8 {[%clk 0:00:16.6]} 34. Kf3 {[%clk 0:01:22.9]} 34... Ra4 {[%clk
0:00:15.1]} 35. Rb8+ {[%clk 0:01:19.3]} 35... Kg7 {[%clk 0:00:15.8]} 36. Re8
{[%clk 0:01:18.8]} 36... Rd4 {[%clk 0:00:11.7]} 37. Ke3 {[%clk 0:01:19.6]} 37...
Rd1 {[%clk 0:00:11.9]} 38. h3 {[%clk 0:01:13.3]} 38... Nc5 {[%clk 0:00:07]} 39.
g4 {[%clk 0:01:11.9]} 39... hxg4 {[%clk 0:00:07.8]} 40. hxg4 {[%clk 0:01:12.7]}
40... Rd3+ {[%clk 0:00:09.1]} 41. Ke2 {[%clk 0:01:11]} 41... Rd5 {[%clk
0:00:09.6]} 42. Rc8 {[%clk 0:01:01.8]} 42... g5 {[%clk 0:00:05.4]} 43. Kf3
{[%clk 0:00:45.1]} 1-0

[Event "*** Titled Tuesday Blitz"]
[Site "Chess.com"]
[Date "2019.07.02"]
[Round "10"]
[White "Gubajdullin"]
[Black "dopolian"]
[Result "1-0"]
[WhiteElo "2594"]
[BlackElo "2350"]
[TimeControl "180+2"]
[EndTime "15:14:30 PDT"]
[Termination "Gubajdullin won by resignation"]

1. d4 {[%clk 0:03:00.6]} 1... Nf6 {[%clk 0:03:01]} 2. Bf4 {[%clk 0:02:59.4]}
2... d6 {[%clk 0:03:00.4]} 3. e3 {[%clk 0:02:59.6]} 3... g6 {[%clk 0:03:01.3]}
4. Nf3 {[%clk 0:03:00.2]} 4... Bg7 {[%clk 0:03:02.8]} 5. Be2 {[%clk 0:03:01.4]}
5... O-O {[%clk 0:03:04.4]} 6. O-O {[%clk 0:03:02.3]} 6... Nfd7 {[%clk 0:03:06]}
7. h3 {[%clk 0:03:01.6]} 7... Nc6 {[%clk 0:03:05.7]} 8. c4 {[%clk 0:03:01.5]}
8... e5 {[%clk 0:03:05.6]} 9. Bg5 {[%clk 0:02:59.4]} 9... Qe8 {[%clk 0:03:01.1]}
10. Nc3 {[%clk 0:02:59]} 10... h6 {[%clk 0:02:55]} 11. Bh4 {[%clk 0:02:58.6]}
11... g5 {[%clk 0:02:45.5]} 12. Bg3 {[%clk 0:02:44.7]} 12... Nf6 {[%clk
0:02:31.7]} 13. Nd5 {[%clk 0:02:44.4]} 13... Nxd5 {[%clk 0:02:13.6]} 14. cxd5
{[%clk 0:02:44.4]} 14... Ne7 {[%clk 0:01:52.1]} 15. dxe5 {[%clk 0:02:42.1]}
15... Nf5 {[%clk 0:01:53.4]} 16. Bh2 {[%clk 0:02:32.8]} 16... dxe5 {[%clk
0:01:53.6]} 17. Qc2 {[%clk 0:02:29.7]} 17... Qe7 {[%clk 0:01:21.3]} 18. Rac1
{[%clk 0:02:28.1]} 18... Bd7 {[%clk 0:01:19.1]} 19. Qxc7 {[%clk 0:02:25.9]}
19... e4 {[%clk 0:01:17.6]} 20. Nd2 {[%clk 0:02:25.7]} 20... Bxb2 {[%clk
0:01:12.4]} 21. Rb1 {[%clk 0:02:24.4]} 21... Rfc8 {[%clk 0:01:08.1]} 22. Qxb7
{[%clk 0:02:24.1]} 22... Bg7 {[%clk 0:00:53.5]} 23. Bg4 {[%clk 0:02:14.8]} 23...
Qe8 {[%clk 0:00:31.2]} 24. Nxe4 {[%clk 0:02:03.1]} 24... Qxe4 {[%clk 0:00:14.6]}
25. Qxd7 {[%clk 0:02:03.5]} 25... Nh4 {[%clk 0:00:12.1]} 26. Bf3 {[%clk
0:01:37.7]} 26... Nxf3+ {[%clk 0:00:12.9]} 27. gxf3 {[%clk 0:01:38.5]} 27...
Qxf3 {[%clk 0:00:14.5]} 28. d6 {[%clk 0:01:28.2]} 28... f5 {[%clk 0:00:07.9]}
29. Qe6+ {[%clk 0:01:18]} 29... Kh8 {[%clk 0:00:08.4]} 30. d7 {[%clk 0:01:18.7]}
30... Rf8 {[%clk 0:00:08.9]} 31. Rb8 {[%clk 0:01:14.3]} 31... Raxb8 {[%clk
0:00:09.5]} 32. Bxb8 {[%clk 0:01:13.9]} 32... Qxh3 {[%clk 0:00:09.8]} 33. Qe8
{[%clk 0:01:01.8]} 33... Kh7 {[%clk 0:00:08.4]} 34. Qxf8 {[%clk 0:00:57]} 34...
Qg4+ {[%clk 0:00:09.5]} 35. Bg3 {[%clk 0:00:56.6]} 35... Bxf8 {[%clk 0:00:10.3]}
36. d8=Q {[%clk 0:00:56.9]} 36... f4 {[%clk 0:00:11.7]} 37. Qxf8 {[%clk
0:00:52.4]} 37... fxg3 {[%clk 0:00:12.4]} 38. Qe7+ {[%clk 0:00:52.4]} 38... Kg6
{[%clk 0:00:12.7]} 39. Qd6+ {[%clk 0:00:53]} 39... Kh5 {[%clk 0:00:11.9]} 40.
Qxg3 {[%clk 0:00:53.6]} 40... Qe2 {[%clk 0:00:13.3]} 41. Kg2 {[%clk 0:00:51.7]}
41... Qxa2 {[%clk 0:00:14.1]} 42. Rh1+ {[%clk 0:00:52]} 42... Kg6 {[%clk
0:00:15.4]} 43. Qd6+ {[%clk 0:00:52.3]} 43... Kf5 {[%clk 0:00:17]} 44. Rxh6
{[%clk 0:00:52.2]} 44... Qf7 {[%clk 0:00:15.1]} 45. Qc5+ {[%clk 0:00:49.4]}
45... Kg4 {[%clk 0:00:14.5]} 46. Qd4+ {[%clk 0:00:48.8]} 46... Kf5 {[%clk
0:00:13.8]} 47. e4+ {[%clk 0:00:48.7]} 47... Kg4 {[%clk 0:00:11.1]} 48. e5+
{[%clk 0:00:49.6]} 48... Kf5 {[%clk 0:00:11.7]} 49. Rf6+ {[%clk 0:00:49.8]} 1-0

[Event "*** Titled Tuesday Blitz"]
[Site "Chess.com"]
[Date "2019.07.02"]
[Round "10"]
[White "riconaipe"]
[Black "INLOVEWITHF"]
[Result "1-0"]
[WhiteElo "2500"]
[BlackElo "2396"]
[TimeControl "180+2"]
[EndTime "15:14:52 PDT"]
[Termination "riconaipe won on time"]

1. d4 {[%clk 0:02:55.6]} 1... Nf6 {[%clk 0:02:59.2]} 2. c4 {[%clk 0:02:56.9]}
2... d6 {[%clk 0:02:57.5]} 3. Nc3 {[%clk 0:02:58.2]} 3... Nbd7 {[%clk
0:02:58.1]} 4. Nf3 {[%clk 0:02:58.9]} 4... g6 {[%clk 0:02:56.9]} 5. g3 {[%clk
0:03:00.3]} 5... Bg7 {[%clk 0:02:57.7]} 6. Bg2 {[%clk 0:02:57.6]} 6... O-O
{[%clk 0:02:58.6]} 7. O-O {[%clk 0:02:59.1]} 7... e5 {[%clk 0:02:59.7]} 8. Qc2
{[%clk 0:02:57.6]} 8... exd4 {[%clk 0:02:46.5]} 9. Nxd4 {[%clk 0:02:58]} 9... a6
{[%clk 0:02:43.4]} 10. Rd1 {[%clk 0:02:58.4]} 10... Rb8 {[%clk 0:02:40.6]} 11.
b3 {[%clk 0:02:58.8]} 11... Nc5 {[%clk 0:02:41.1]} 12. Bb2 {[%clk 0:02:58.9]}
12... Bd7 {[%clk 0:02:41.3]} 13. Nd5 {[%clk 0:02:55.1]} 13... Nxd5 {[%clk
0:02:38]} 14. cxd5 {[%clk 0:02:56]} 14... a5 {[%clk 0:02:34.3]} 15. e4 {[%clk
0:02:52.3]} 15... Re8 {[%clk 0:02:28.5]} 16. h4 {[%clk 0:02:53.1]} 16... Qe7
{[%clk 0:02:27.8]} 17. Re1 {[%clk 0:02:52.4]} 17... Na6 {[%clk 0:02:20]} 18. a3
{[%clk 0:02:49]} 18... c5 {[%clk 0:02:20.3]} 19. dxc6 {[%clk 0:02:32.1]} 19...
bxc6 {[%clk 0:02:22.2]} 20. Nxc6 {[%clk 0:02:33.2]} 20... Bxc6 {[%clk
0:02:07.4]} 21. Bxg7 {[%clk 0:02:33.9]} 21... Kxg7 {[%clk 0:02:02.1]} 22. Qxc6
{[%clk 0:02:33.3]} 22... Nc5 {[%clk 0:02:03.3]} 23. Rab1 {[%clk 0:02:16.2]}
23... Qe5 {[%clk 0:01:43.8]} 24. b4 {[%clk 0:01:56.9]} 24... axb4 {[%clk
0:01:30.7]} 25. axb4 {[%clk 0:01:58.2]} 25... Rec8 {[%clk 0:01:31]} 26. Qd5
{[%clk 0:01:46.1]} 26... Qxd5 {[%clk 0:01:31.8]} 27. exd5 {[%clk 0:01:47.4]}
27... Nd3 {[%clk 0:01:33.1]} 28. Re7 {[%clk 0:01:21.1]} 28... Rxb4 {[%clk
0:00:39.4]} 29. Rxb4 {[%clk 0:01:21.2]} 29... Nxb4 {[%clk 0:00:41.3]} 30. Rd7
{[%clk 0:01:22.3]} 30... Kf6 {[%clk 0:00:42.9]} 31. Rxd6+ {[%clk 0:01:23.4]}
31... Ke5 {[%clk 0:00:43.9]} 32. Rd7 {[%clk 0:01:24.4]} 32... Rc1+ {[%clk
0:00:40.5]} 33. Kh2 {[%clk 0:01:24.3]} 33... Nd3 {[%clk 0:00:42.4]} 34. Rxf7
{[%clk 0:01:22.4]} 34... Rc2 {[%clk 0:00:38.7]} 35. f4+ {[%clk 0:01:01.8]} 35...
Kd6 {[%clk 0:00:30.5]} 36. Rf6+ {[%clk 0:01:02.6]} 36... Ke7 {[%clk 0:00:26.6]}
37. Rc6 {[%clk 0:00:56.3]} 37... Rd2 {[%clk 0:00:24.4]} 38. h5 {[%clk
0:00:40.7]} 38... gxh5 {[%clk 0:00:19.6]} 39. Kh3 {[%clk 0:00:40.5]} 39... Nf2+
{[%clk 0:00:09.8]} 40. Kh4 {[%clk 0:00:41.7]} 40... Ng4 {[%clk 0:00:09]} 41. Bf3
{[%clk 0:00:23.9]} 41... Nf6 {[%clk 0:00:03.4]} 42. Rc7+ {[%clk 0:00:15.6]}
42... Kd6 {[%clk 0:00:02.3]} 43. Rf7 {[%clk 0:00:13.5]} 1-0